[Event "Early-Titled-Tuesday-Blitz-August-29-2023"]
[Site "Chess.com"]
[Date "2023.08.29"]
[Round "5"]
[White "Alexander_Moskalenko"]
[Black "DeArron_Fox"]
[Result "1-0"]
[WhiteElo "2837"]
[BlackElo "2494"]
[TimeControl "180+1"]
[EndTime "8:55:05 PDT"]
[Termination "Alexander_Moskalenko won on time"]

1. d4 {[%clk 0:03:00.9]} 1... d5 {[%clk 0:02:58.1]} 2. Bg5 {[%clk 0:03:00.9]}
2... Nf6 {[%clk 0:02:23.4]} 3. Bxf6 {[%clk 0:03:00.7]} 3... exf6 {[%clk
0:02:24.3]} 4. e3 {[%clk 0:03:01.2]} 4... c6 {[%clk 0:02:20.9]} 5. Nd2 {[%clk
0:03:01.1]} 5... Bd6 {[%clk 0:02:20.3]} 6. Bd3 {[%clk 0:03:01.6]} 6... O-O
{[%clk 0:02:20]} 7. Qf3 {[%clk 0:03:02.3]} 7... g6 {[%clk 0:02:17]} 8. g4 {[%clk
0:03:00]} 8... c5 {[%clk 0:01:56.8]} 9. c3 {[%clk 0:02:59.6]} 9... Nc6 {[%clk
0:01:48.4]} 10. Ne2 {[%clk 0:02:59]} 10... Rb8 {[%clk 0:01:16.4]} 11. h4 {[%clk
0:02:56.8]} 11... Kg7 {[%clk 0:00:36.5]} 12. h5 {[%clk 0:02:56.1]} 12... b5
{[%clk 0:00:19.6]} 13. hxg6 {[%clk 0:02:48.2]} 13... hxg6 {[%clk 0:00:15.9]} 14.
Qxd5 {[%clk 0:02:42.7]} 14... Bb7 {[%clk 0:00:13.4]} 15. dxc5 {[%clk 0:01:14.7]}
15... Nb4 {[%clk 0:00:12.7]} 16. Qd4 {[%clk 0:01:15.1]} 16... Bxc5 {[%clk
0:00:04.7]} 17. Qxd8 {[%clk 0:01:10.5]} 17... Rfxd8 {[%clk 0:00:05.6]} 18. cxb4
{[%clk 0:01:11.1]} 18... Bxb4 {[%clk 0:00:05.5]} 19. O-O {[%clk 0:00:48.2]}
19... Rxd3 {[%clk 0:00:04.1]} 20. Nb3 {[%clk 0:00:45.6]} 20... Rh8 {[%clk
0:00:03.7]} 21. Ng3 {[%clk 0:00:46.3]} 21... Bd6 {[%clk 0:00:02.5]} 22. e4
{[%clk 0:00:33.3]} 22... Bxg3 {[%clk 0:00:02.8]} 23. fxg3 {[%clk 0:00:34.2]}
23... Rxg3+ {[%clk 0:00:02.6]} 24. Kf2 {[%clk 0:00:35.1]} 24... Rd3 {[%clk
0:00:02.5]} 25. Nc5 {[%clk 0:00:35.1]} 25... Rh2+ {[%clk 0:00:02.8]} 26. Kg1
{[%clk 0:00:34.4]} 26... Rdd2 {[%clk 0:00:03.2]} 27. Rfd1 {[%clk 0:00:32.6]}
27... Rdg2+ {[%clk 0:00:02.8]} 28. Kf1 {[%clk 0:00:33.1]} 28... Bc6 {[%clk
0:00:02.4]} 29. Rd6 {[%clk 0:00:33.3]} 29... Be8 {[%clk 0:00:02]} 30. Rad1
{[%clk 0:00:34]} 30... b4 {[%clk 0:00:02.2]} 31. R1d5 {[%clk 0:00:27.1]} 31...
Bb5+ {[%clk 0:00:02.7]} 32. Nd3 {[%clk 0:00:27.8]} 32... Bc4 {[%clk 0:00:02.4]}
33. Rc5 {[%clk 0:00:25.2]} 33... Bxa2 {[%clk 0:00:02]} 34. Nxb4 {[%clk
0:00:17.2]} 34... Rxb2 {[%clk 0:00:01]} 35. Kg1 {[%clk 0:00:14.3]} 1-0

[Event "Early-Titled-Tuesday-Blitz-August-29-2023"]
[Site "Chess.com"]
[Date "2023.08.29"]
[Round "5"]
[White "Khromkin"]
[Black "ural58"]
[Result "0-1"]
[WhiteElo "2323"]
[BlackElo "2508"]
[TimeControl "180+1"]
[EndTime "8:55:06 PDT"]
[Termination "ural58 won on time"]

1. d4 {[%clk 0:03:00.9]} 1... d5 {[%clk 0:02:59.1]} 2. c4 {[%clk 0:03:01.3]}
2... e5 {[%clk 0:02:58.6]} 3. dxe5 {[%clk 0:03:00.5]} 3... d4 {[%clk 0:02:58.8]}
4. Nf3 {[%clk 0:03:01]} 4... Nc6 {[%clk 0:02:58.6]} 5. g3 {[%clk 0:03:01.6]}
5... Nge7 {[%clk 0:02:58.2]} 6. Bg2 {[%clk 0:03:02]} 6... Ng6 {[%clk 0:02:58.3]}
7. O-O {[%clk 0:02:48.6]} 7... Ngxe5 {[%clk 0:02:57.4]} 8. a3 {[%clk 0:02:43]}
8... Nxf3+ {[%clk 0:02:56.5]} 9. exf3 {[%clk 0:02:43]} 9... Be7 {[%clk
0:02:52.7]} 10. b4 {[%clk 0:02:42.2]} 10... O-O {[%clk 0:02:52.6]} 11. Bb2
{[%clk 0:02:38.7]} 11... Bf6 {[%clk 0:02:52.6]} 12. Nd2 {[%clk 0:02:39]} 12...
d3 {[%clk 0:02:46.2]} 13. Bxf6 {[%clk 0:02:36.3]} 13... Qxf6 {[%clk 0:02:46.2]}
14. Ne4 {[%clk 0:02:34.5]} 14... Qd4 {[%clk 0:02:46.1]} 15. Qb3 {[%clk 0:02:26]}
15... Rd8 {[%clk 0:02:42.7]} 16. Rad1 {[%clk 0:02:24.1]} 16... Bf5 {[%clk
0:02:41.1]} 17. Rfe1 {[%clk 0:02:23.4]} 17... Ne5 {[%clk 0:02:22.7]} 18. Re3
{[%clk 0:02:07]} 18... Qxc4 {[%clk 0:02:16.7]} 19. Qxc4 {[%clk 0:02:00.9]} 19...
Nxc4 {[%clk 0:02:16.7]} 20. Rexd3 {[%clk 0:02:00.8]} 20... Rxd3 {[%clk
0:02:13.9]} 21. Rxd3 {[%clk 0:02:01.4]} 21... c6 {[%clk 0:01:59.3]} 22. Rc3
{[%clk 0:01:53.1]} 22... Nb6 {[%clk 0:01:47.2]} 23. Nd6 {[%clk 0:01:45.4]} 23...
Nd5 {[%clk 0:01:45.9]} 24. Rc5 {[%clk 0:01:41.5]} 24... Bc8 {[%clk 0:01:39.4]}
25. f4 {[%clk 0:01:37.9]} 25... Ne7 {[%clk 0:01:36.2]} 26. b5 {[%clk 0:01:18]}
26... cxb5 {[%clk 0:01:34.1]} 27. Rc7 {[%clk 0:01:09.8]} 27... Kf8 {[%clk
0:01:30.9]} 28. Nxb7 {[%clk 0:01:06.7]} 28... Bxb7 {[%clk 0:01:22.2]} 29. Rxb7
{[%clk 0:01:06.8]} 29... Rc8 {[%clk 0:01:17.2]} 30. Rxa7 {[%clk 0:00:55.3]}
30... Rc1+ {[%clk 0:01:16.4]} 31. Bf1 {[%clk 0:00:55.7]} 31... Nd5 {[%clk
0:01:12.9]} 32. Kg2 {[%clk 0:00:55.1]} 32... Rb1 {[%clk 0:01:09.3]} 33. Rb7
{[%clk 0:00:42.7]} 33... Nc3 {[%clk 0:01:08.8]} 34. f5 {[%clk 0:00:27.6]} 34...
Rb3 {[%clk 0:01:05.2]} 35. h4 {[%clk 0:00:21.5]} 35... h5 {[%clk 0:01:04.8]} 36.
Rb6 {[%clk 0:00:10.5]} 36... Rxa3 {[%clk 0:01:02.1]} 37. Bxb5 {[%clk 0:00:09.7]}
37... Rb3 {[%clk 0:01:01.7]} 38. Rb8+ {[%clk 0:00:10.3]} 38... Ke7 {[%clk
0:01:01.8]} 39. Rb7+ {[%clk 0:00:11]} 39... Kd6 {[%clk 0:01:01.4]} 40. Bc6
{[%clk 0:00:11.6]} 40... Rxb7 {[%clk 0:00:58.8]} 41. Bxb7 {[%clk 0:00:11.8]}
41... Ke5 {[%clk 0:00:59.5]} 42. Bc8 {[%clk 0:00:12.4]} 42... Ne4 {[%clk
0:00:56.7]} 43. Kf3 {[%clk 0:00:11.2]} 43... Nd6 {[%clk 0:00:56.9]} 44. Bd7
{[%clk 0:00:11.6]} 44... Nxf5 {[%clk 0:00:56.7]} 45. Bxf5 {[%clk 0:00:12.1]}
45... Kxf5 {[%clk 0:00:57.1]} 46. Kg2 {[%clk 0:00:04.5]} 46... Ke4 {[%clk
0:00:57.2]} 47. f3+ {[%clk 0:00:03.6]} 47... Ke3 {[%clk 0:00:57.4]} 48. g4
{[%clk 0:00:04.2]} 48... g6 {[%clk 0:00:52.8]} 49. gxh5 {[%clk 0:00:03.2]} 49...
gxh5 {[%clk 0:00:52.2]} 50. Kg3 {[%clk 0:00:02.1]} 50... f6 {[%clk 0:00:52.2]}
0-1

[Event "Early-Titled-Tuesday-Blitz-August-29-2023"]
[Site "Chess.com"]
[Date "2023.08.29"]
[Round "5"]
[White "dennisodessa"]
[Black "Dewarfd"]
[Result "1-0"]
[WhiteElo "2518"]
[BlackElo "2193"]
[TimeControl "180+1"]
[EndTime "8:55:06 PDT"]
[Termination "dennisodessa won by checkmate"]

1. d4 {[%clk 0:03:00.9]} 1... d5 {[%clk 0:02:59.7]} 2. c4 {[%clk 0:03:01.1]}
2... e6 {[%clk 0:02:59.8]} 3. Nc3 {[%clk 0:03:01.2]} 3... c5 {[%clk 0:03:00.6]}
4. Nf3 {[%clk 0:02:58.2]} 4... cxd4 {[%clk 0:02:57.7]} 5. Qxd4 {[%clk
0:02:51.6]} 5... Nc6 {[%clk 0:02:56.1]} 6. Qd1 {[%clk 0:02:47.7]} 6... Bb4
{[%clk 0:02:52.4]} 7. e3 {[%clk 0:02:43.9]} 7... Nf6 {[%clk 0:02:47.1]} 8. Bd2
{[%clk 0:02:43]} 8... O-O {[%clk 0:02:44]} 9. cxd5 {[%clk 0:02:38]} 9... exd5
{[%clk 0:02:43.4]} 10. a3 {[%clk 0:02:36.4]} 10... Ba5 {[%clk 0:02:35.8]} 11.
Be2 {[%clk 0:02:34.7]} 11... d4 {[%clk 0:02:32.6]} 12. exd4 {[%clk 0:02:33.8]}
12... Nxd4 {[%clk 0:02:33]} 13. Nxd4 {[%clk 0:02:33]} 13... Qxd4 {[%clk
0:02:32.9]} 14. O-O {[%clk 0:02:33.9]} 14... Bf5 {[%clk 0:02:11.3]} 15. Bf3
{[%clk 0:02:27.6]} 15... Rad8 {[%clk 0:02:02.5]} 16. Be3 {[%clk 0:02:26.8]}
16... Qxd1 {[%clk 0:02:01.9]} 17. Rfxd1 {[%clk 0:02:21.2]} 17... Bxc3 {[%clk
0:02:01.2]} 18. bxc3 {[%clk 0:02:20.2]} 18... b6 {[%clk 0:02:00]} 19. a4 {[%clk
0:02:09.7]} 19... Bg4 {[%clk 0:01:55.8]} 20. Rxd8 {[%clk 0:02:01.7]} 20... Rxd8
{[%clk 0:01:54.5]} 21. a5 {[%clk 0:02:02.6]} 21... Bxf3 {[%clk 0:01:53.9]} 22.
gxf3 {[%clk 0:02:02]} 22... Nd5 {[%clk 0:01:47.6]} 23. axb6 {[%clk 0:02:00.1]}
23... axb6 {[%clk 0:01:46.7]} 24. Rd1 {[%clk 0:01:55.1]} 24... Rd7 {[%clk
0:01:37.1]} 25. c4 {[%clk 0:01:54.5]} 25... Nf6 {[%clk 0:01:37]} 26. Rb1 {[%clk
0:01:51.3]} 26... Rb7 {[%clk 0:01:24.6]} 27. Rxb6 {[%clk 0:01:48]} 27... Rxb6
{[%clk 0:01:24.5]} 28. Bxb6 {[%clk 0:01:48.9]} 28... Kf8 {[%clk 0:01:19]} 29.
Kf1 {[%clk 0:01:38.6]} 29... Ke7 {[%clk 0:01:17.7]} 30. Ke2 {[%clk 0:01:37.6]}
30... Nd7 {[%clk 0:01:16.8]} 31. Bd4 {[%clk 0:01:37.2]} 31... f6 {[%clk
0:01:16.5]} 32. Kd3 {[%clk 0:01:33.1]} 32... Kd6 {[%clk 0:01:16.9]} 33. f4
{[%clk 0:01:32.2]} 33... Nf8 {[%clk 0:01:09]} 34. f5 {[%clk 0:01:30.8]} 34...
Nd7 {[%clk 0:01:05.4]} 35. Ke4 {[%clk 0:01:31.4]} 35... Nb8 {[%clk 0:01:03.9]}
36. h4 {[%clk 0:01:27.2]} 36... Nc6 {[%clk 0:01:04.5]} 37. Bc3 {[%clk
0:01:26.7]} 37... Kd7 {[%clk 0:01:00.6]} 38. c5 {[%clk 0:01:22.7]} 38... Ne7
{[%clk 0:00:58.5]} 39. h5 {[%clk 0:01:21.8]} 39... Kc6 {[%clk 0:00:49.9]} 40. h6
{[%clk 0:01:18.6]} 40... gxh6 {[%clk 0:00:47]} 41. Bxf6 {[%clk 0:01:17.8]} 41...
Nd5 {[%clk 0:00:17.1]} 42. Bg7 {[%clk 0:01:16.8]} 42... h5 {[%clk 0:00:17]} 43.
f6 {[%clk 0:01:16.6]} 43... Nc7 {[%clk 0:00:14]} 44. f7 {[%clk 0:01:16]} 44...
Ne6 {[%clk 0:00:14.5]} 45. f8=Q {[%clk 0:01:16.9]} 45... Nxf8 {[%clk 0:00:14.5]}
46. Bxf8 {[%clk 0:01:17.8]} 46... h4 {[%clk 0:00:14.8]} 47. Kf3 {[%clk
0:01:17.8]} 47... h5 {[%clk 0:00:13.3]} 48. Kg2 {[%clk 0:01:17.8]} 48... Kd5
{[%clk 0:00:13.8]} 49. Kh3 {[%clk 0:01:18.7]} 49... Ke6 {[%clk 0:00:14]} 50.
Kxh4 {[%clk 0:01:19.1]} 50... Kf7 {[%clk 0:00:14.9]} 51. Bd6 {[%clk 0:01:19.8]}
51... Ke6 {[%clk 0:00:15.5]} 52. Kxh5 {[%clk 0:01:20.7]} 52... Kd7 {[%clk
0:00:16.2]} 53. Kg6 {[%clk 0:01:19.7]} 53... Kc6 {[%clk 0:00:17.1]} 54. f4
{[%clk 0:01:20.6]} 54... Kd7 {[%clk 0:00:17.9]} 55. f5 {[%clk 0:01:21.5]} 55...
Ke8 {[%clk 0:00:18.3]} 56. f6 {[%clk 0:01:22.4]} 56... Kd7 {[%clk 0:00:18.4]}
57. f7 {[%clk 0:01:23.3]} 57... Kc6 {[%clk 0:00:17.5]} 58. f8=Q {[%clk
0:01:24.2]} 58... Kd7 {[%clk 0:00:18.1]} 59. Bg3 {[%clk 0:01:22]} 59... Ke6
{[%clk 0:00:17.1]} 60. Qd6# {[%clk 0:01:21.9]} 1-0

[Event "Early-Titled-Tuesday-Blitz-August-29-2023"]
[Site "Chess.com"]
[Date "2023.08.29"]
[Round "5"]
[White "mbojan"]
[Black "bubeliang"]
[Result "1-0"]
[WhiteElo "2894"]
[BlackElo "2650"]
[TimeControl "180+1"]
[EndTime "8:55:07 PDT"]
[Termination "mbojan won on time"]

1. Nf3 {[%clk 0:03:00.9]} 1... Nf6 {[%clk 0:02:59.1]} 2. g3 {[%clk 0:03:01.3]}
2... g6 {[%clk 0:02:59.1]} 3. Bg2 {[%clk 0:03:02]} 3... Bg7 {[%clk 0:02:59.8]}
4. O-O {[%clk 0:03:02.7]} 4... O-O {[%clk 0:03:00.7]} 5. d3 {[%clk 0:03:03.2]}
5... d5 {[%clk 0:03:00.6]} 6. Nbd2 {[%clk 0:03:03.4]} 6... c5 {[%clk 0:02:57.1]}
7. Re1 {[%clk 0:03:03.3]} 7... Nc6 {[%clk 0:02:55.5]} 8. e4 {[%clk 0:03:03.6]}
8... e6 {[%clk 0:02:55.3]} 9. c3 {[%clk 0:03:03]} 9... Re8 {[%clk 0:02:51]} 10.
e5 {[%clk 0:02:56.8]} 10... Nd7 {[%clk 0:02:48.6]} 11. d4 {[%clk 0:02:57]} 11...
b6 {[%clk 0:02:45.6]} 12. Bf1 {[%clk 0:02:53.5]} 12... f6 {[%clk 0:02:34.9]} 13.
Bb5 {[%clk 0:02:39]} 13... Bb7 {[%clk 0:02:33.6]} 14. exf6 {[%clk 0:02:33.7]}
14... Bxf6 {[%clk 0:02:31.1]} 15. Nf1 {[%clk 0:02:31.8]} 15... e5 {[%clk
0:02:20.2]} 16. dxe5 {[%clk 0:02:07]} 16... Ndxe5 {[%clk 0:02:21.1]} 17. Bf4
{[%clk 0:02:03.8]} 17... Nxf3+ {[%clk 0:02:01.2]} 18. Qxf3 {[%clk 0:02:04.7]}
18... Qd7 {[%clk 0:02:00.5]} 19. Ne3 {[%clk 0:01:57]} 19... d4 {[%clk 0:01:49]}
20. Qd5+ {[%clk 0:01:07]} 20... Qxd5 {[%clk 0:01:21.5]} 21. Nxd5 {[%clk
0:01:07.9]} 21... Be5 {[%clk 0:01:04.1]} 22. Bxe5 {[%clk 0:00:59.7]} 22... Nxe5
{[%clk 0:00:50.7]} 23. Nf6+ {[%clk 0:00:44.2]} 23... Kf7 {[%clk 0:00:45.9]} 24.
Nxe8 {[%clk 0:00:44.3]} 24... Nf3+ {[%clk 0:00:43.6]} 25. Kf1 {[%clk 0:00:44.7]}
25... a6 {[%clk 0:00:32.7]} 26. Nd6+ {[%clk 0:00:43.6]} 26... Kf6 {[%clk
0:00:30.4]} 27. Nxb7 {[%clk 0:00:35.2]} 27... axb5 {[%clk 0:00:21.5]} 28. cxd4
{[%clk 0:00:31.9]} 28... Nxe1 {[%clk 0:00:19.4]} 29. Kxe1 {[%clk 0:00:32.8]}
29... cxd4 {[%clk 0:00:13.6]} 30. Nd6 {[%clk 0:00:32.4]} 30... b4 {[%clk
0:00:08.1]} 31. Nc4 {[%clk 0:00:26.1]} 31... b5 {[%clk 0:00:07.4]} 32. Nd2
{[%clk 0:00:26.4]} 32... Ke5 {[%clk 0:00:07.1]} 33. Ke2 {[%clk 0:00:26.1]} 33...
Kd5 {[%clk 0:00:01.3]} 34. Kd3 {[%clk 0:00:25.7]} 34... Re8 {[%clk 0:00:01.3]}
35. a3 {[%clk 0:00:20.7]} 35... bxa3 {[%clk 0:00:01.9]} 36. Rxa3 {[%clk
0:00:21]} 36... Rf8 {[%clk 0:00:01.7]} 37. f3 {[%clk 0:00:17.6]} 1-0

[Event "Early-Titled-Tuesday-Blitz-August-29-2023"]
[Site "Chess.com"]
[Date "2023.08.29"]
[Round "5"]
[White "ahkashefi2800"]
[Black "Virgo15"]
[Result "1-0"]
[WhiteElo "2593"]
[BlackElo "2747"]
[TimeControl "180+1"]
[EndTime "8:55:10 PDT"]
[Termination "ahkashefi2800 won by resignation"]

1. d4 {[%clk 0:02:46.4]} 1... Nf6 {[%clk 0:02:59.3]} 2. Nf3 {[%clk 0:02:38.5]}
2... d5 {[%clk 0:02:59.3]} 3. c4 {[%clk 0:02:34.2]} 3... e6 {[%clk 0:02:59.3]}
4. cxd5 {[%clk 0:02:33.8]} 4... exd5 {[%clk 0:02:59]} 5. Nc3 {[%clk 0:02:34.7]}
5... a6 {[%clk 0:02:58.9]} 6. Bg5 {[%clk 0:02:24.6]} 6... Be6 {[%clk 0:02:59.2]}
7. e3 {[%clk 0:02:19.3]} 7... Nbd7 {[%clk 0:02:57.5]} 8. Be2 {[%clk 0:02:10.1]}
8... Bd6 {[%clk 0:02:56.7]} 9. O-O {[%clk 0:02:07.8]} 9... c6 {[%clk 0:02:54.4]}
10. Qc2 {[%clk 0:01:56.8]} 10... Qc7 {[%clk 0:02:51.2]} 11. Bh4 {[%clk
0:01:50.4]} 11... O-O {[%clk 0:02:49.8]} 12. Bg3 {[%clk 0:01:48.6]} 12... Bxg3
{[%clk 0:02:49.8]} 13. hxg3 {[%clk 0:01:49.5]} 13... Bg4 {[%clk 0:02:50.4]} 14.
a3 {[%clk 0:01:45]} 14... Qd6 {[%clk 0:02:50.4]} 15. Rac1 {[%clk 0:01:41.5]}
15... Rae8 {[%clk 0:02:48.4]} 16. Rfd1 {[%clk 0:01:38.4]} 16... Ne4 {[%clk
0:02:42.2]} 17. Nxe4 {[%clk 0:01:24.5]} 17... Rxe4 {[%clk 0:02:41.4]} 18. Bd3
{[%clk 0:01:22]} 18... f5 {[%clk 0:02:35.4]} 19. b4 {[%clk 0:00:50.8]} 19... Qh6
{[%clk 0:02:23.5]} 20. Re1 {[%clk 0:00:44.9]} 20... Qh5 {[%clk 0:02:15.5]} 21.
Nh2 {[%clk 0:00:42.9]} 21... Rf6 {[%clk 0:02:10.2]} 22. f3 {[%clk 0:00:33.5]}
22... Rh6 {[%clk 0:02:06.2]} 23. Nxg4 {[%clk 0:00:24.6]} 23... fxg4 {[%clk
0:02:00.8]} 24. Bxe4 {[%clk 0:00:24.1]} 24... dxe4 {[%clk 0:01:52]} 25. f4
{[%clk 0:00:11.2]} 25... Nf6 {[%clk 0:01:48.8]} 26. Kf2 {[%clk 0:00:09.2]} 26...
Qf5 {[%clk 0:01:49.2]} 27. Rh1 {[%clk 0:00:08.6]} 27... Rg6 {[%clk 0:01:49.2]}
28. Qc5 {[%clk 0:00:08.6]} 28... Nd5 {[%clk 0:01:49]} 29. a4 {[%clk 0:00:09]}
29... Rf6 {[%clk 0:01:46.9]} 30. b5 {[%clk 0:00:08.5]} 30... axb5 {[%clk
0:01:47.8]} 31. axb5 {[%clk 0:00:08.6]} 31... g5 {[%clk 0:01:48]} 32. bxc6
{[%clk 0:00:06.6]} 32... bxc6 {[%clk 0:01:48]} 33. Rcd1 {[%clk 0:00:01.4]} 33...
gxf4 {[%clk 0:01:48.4]} 34. gxf4 {[%clk 0:00:01.6]} 34... g3+ {[%clk 0:01:49.3]}
35. Ke2 {[%clk 0:00:01.6]} 35... Qc8 {[%clk 0:01:38.1]} 36. Qc4 {[%clk
0:00:01.8]} 36... Qg4+ {[%clk 0:01:34.9]} 37. Kd2 {[%clk 0:00:01.6]} 37... Kg7
{[%clk 0:01:34.2]} 38. Ra1 {[%clk 0:00:02.5]} 38... Nxe3 {[%clk 0:01:34]} 39.
Ra7+ {[%clk 0:00:03.1]} 39... Kg6 {[%clk 0:01:34.6]} 40. Kxe3 {[%clk 0:00:03.5]}
40... Qxf4+ {[%clk 0:01:34.6]} 41. Ke2 {[%clk 0:00:04.1]} 41... Qg4+ {[%clk
0:01:20.3]} 42. Kd2 {[%clk 0:00:04.5]} 42... Rf2+ {[%clk 0:01:20.5]} 43. Kc3
{[%clk 0:00:04.8]} 43... Rf8 {[%clk 0:00:54.2]} 44. Qxc6+ {[%clk 0:00:03.6]}
44... Kg5 {[%clk 0:00:54.8]} 45. Qd5+ {[%clk 0:00:02.9]} 45... Rf5 {[%clk
0:00:55.3]} 46. Qg8+ {[%clk 0:00:03]} 46... Kf4 {[%clk 0:00:55.5]} 47. Qxg4+
{[%clk 0:00:03.9]} 47... Kxg4 {[%clk 0:00:56]} 48. Rg7+ {[%clk 0:00:04.3]} 48...
Kf4 {[%clk 0:00:56]} 49. Rf1+ {[%clk 0:00:04.7]} 49... Ke3 {[%clk 0:00:55.7]}
50. Rxf5 {[%clk 0:00:05.6]} 1-0

[Event "Early-Titled-Tuesday-Blitz-August-29-2023"]
[Site "Chess.com"]
[Date "2023.08.29"]
[Round "5"]
[White "Mihaiionescu1"]
[Black "VSanduleac"]
[Result "0-1"]
[WhiteElo "2503"]
[BlackElo "2427"]
[TimeControl "180+1"]
[EndTime "8:55:15 PDT"]
[Termination "VSanduleac won by resignation"]

1. Nf3 {[%clk 0:02:59]} 1... d5 {[%clk 0:02:59.7]} 2. g3 {[%clk 0:02:57.5]} 2...
c6 {[%clk 0:03:00.2]} 3. Bg2 {[%clk 0:02:56.4]} 3... Nf6 {[%clk 0:03:00.8]} 4.
O-O {[%clk 0:02:56]} 4... Bg4 {[%clk 0:03:01.3]} 5. d3 {[%clk 0:02:55.5]} 5...
Nbd7 {[%clk 0:03:00.4]} 6. Nfd2 {[%clk 0:02:50.9]} 6... e6 {[%clk 0:02:57.9]} 7.
Qe1 {[%clk 0:02:50.9]} 7... Be7 {[%clk 0:02:54.4]} 8. e4 {[%clk 0:02:49.9]} 8...
dxe4 {[%clk 0:02:52.7]} 9. dxe4 {[%clk 0:02:50.8]} 9... e5 {[%clk 0:02:52.8]}
10. Nc3 {[%clk 0:02:47.2]} 10... O-O {[%clk 0:02:51.9]} 11. h3 {[%clk
0:02:46.1]} 11... Be6 {[%clk 0:02:50.7]} 12. Kh1 {[%clk 0:02:41.2]} 12... Bb4
{[%clk 0:02:45.3]} 13. Qe3 {[%clk 0:02:32.1]} 13... Qb6 {[%clk 0:02:42.2]} 14.
Nb3 {[%clk 0:02:12.6]} 14... a5 {[%clk 0:02:33.8]} 15. a3 {[%clk 0:01:56.1]}
15... Be7 {[%clk 0:02:29.5]} 16. Na4 {[%clk 0:01:15.7]} 16... Qc7 {[%clk
0:02:24.5]} 17. Nbc5 {[%clk 0:01:07.3]} 17... Bc4 {[%clk 0:02:20.6]} 18. Rd1
{[%clk 0:01:05.6]} 18... b5 {[%clk 0:02:15.2]} 19. Nxd7 {[%clk 0:01:03]} 19...
Nxd7 {[%clk 0:02:13]} 20. Nc3 {[%clk 0:00:42.6]} 20... b4 {[%clk 0:02:00.8]} 21.
Na4 {[%clk 0:00:30.3]} 21... Bb5 {[%clk 0:01:55.7]} 22. axb4 {[%clk 0:00:28.9]}
22... axb4 {[%clk 0:01:54.3]} 23. b3 {[%clk 0:00:27.8]} 23... Bxa4 {[%clk
0:01:50.3]} 24. Rxa4 {[%clk 0:00:26.1]} 24... Rxa4 {[%clk 0:01:49.3]} 25. bxa4
{[%clk 0:00:27]} 25... Bc5 {[%clk 0:01:46.7]} 26. Qe2 {[%clk 0:00:24.1]} 26...
Ra8 {[%clk 0:01:42.4]} 27. Be3 {[%clk 0:00:15.6]} 27... Bxe3 {[%clk 0:01:28.5]}
28. Qxe3 {[%clk 0:00:16.5]} 28... Nf8 {[%clk 0:01:24.1]} 29. Qb3 {[%clk
0:00:15.2]} 29... c5 {[%clk 0:01:23.2]} 30. Bf1 {[%clk 0:00:15.2]} 30... Ne6
{[%clk 0:01:21.4]} 31. Rd5 {[%clk 0:00:07.7]} 31... h5 {[%clk 0:01:14]} 32. Bb5
{[%clk 0:00:05.4]} 32... Ng5 {[%clk 0:00:51]} 33. Qd3 {[%clk 0:00:03.4]} 33...
Qe7 {[%clk 0:00:48.9]} 34. Kg2 {[%clk 0:00:03.1]} 34... Qe6 {[%clk 0:00:47.7]}
35. h4 {[%clk 0:00:01.9]} 35... Qh3+ {[%clk 0:00:46.3]} 36. Kg1 {[%clk
0:00:02.5]} 36... Ne6 {[%clk 0:00:44.4]} 37. Rxe5 {[%clk 0:00:03.1]} 37... Qg4
{[%clk 0:00:40.9]} 38. c3 {[%clk 0:00:03.1]} 38... b3 {[%clk 0:00:38.7]} 39. c4
{[%clk 0:00:03.2]} 39... b2 {[%clk 0:00:38.3]} 40. Qb1 {[%clk 0:00:03.1]} 40...
Qe2 {[%clk 0:00:35.9]} 41. Rd5 {[%clk 0:00:02.5]} 41... Nd4 {[%clk 0:00:34.8]}
42. Rxd4 {[%clk 0:00:02.8]} 42... cxd4 {[%clk 0:00:34.4]} 43. c5 {[%clk
0:00:03.4]} 43... Qd2 {[%clk 0:00:34]} 44. c6 {[%clk 0:00:03.7]} 44... Qc1+
{[%clk 0:00:34]} 45. Bf1 {[%clk 0:00:01.8]} 45... Qxb1 {[%clk 0:00:32.8]} 0-1

[Event "Early-Titled-Tuesday-Blitz-August-29-2023"]
[Site "Chess.com"]
[Date "2023.08.29"]
[Round "5"]
[White "MdChess1734"]
[Black "Barbus89"]
[Result "0-1"]
[WhiteElo "2365"]
[BlackElo "2507"]
[TimeControl "180+1"]
[EndTime "8:55:15 PDT"]
[Termination "Barbus89 won on time"]

1. e4 {[%clk 0:02:56.9]} 1... c6 {[%clk 0:02:59.6]} 2. d4 {[%clk 0:02:55.5]}
2... d5 {[%clk 0:03:00.2]} 3. Nd2 {[%clk 0:02:51.2]} 3... dxe4 {[%clk
0:02:59.1]} 4. Nxe4 {[%clk 0:02:51.8]} 4... Nf6 {[%clk 0:02:59.6]} 5. Ng3 {[%clk
0:02:51.8]} 5... h5 {[%clk 0:02:58.2]} 6. h4 {[%clk 0:02:43.3]} 6... Bg4 {[%clk
0:02:56.3]} 7. Be2 {[%clk 0:02:41.4]} 7... e6 {[%clk 0:02:51.1]} 8. Nf3 {[%clk
0:02:29.5]} 8... Nbd7 {[%clk 0:02:49.5]} 9. Bf4 {[%clk 0:02:22.5]} 9... Nd5
{[%clk 0:02:45.1]} 10. Bg5 {[%clk 0:02:22.3]} 10... Qa5+ {[%clk 0:02:44.1]} 11.
c3 {[%clk 0:02:21.5]} 11... Bd6 {[%clk 0:02:30.9]} 12. Ne4 {[%clk 0:02:20.6]}
12... Bf4 {[%clk 0:02:30.1]} 13. g3 {[%clk 0:01:56]} 13... Bxg5 {[%clk 0:02:16]}
14. Nfxg5 {[%clk 0:01:44.7]} 14... Bxe2 {[%clk 0:01:53.4]} 15. Qxe2 {[%clk
0:01:43.7]} 15... Qc7 {[%clk 0:01:53.8]} 16. O-O-O {[%clk 0:01:25.7]} 16... N7f6
{[%clk 0:01:46.9]} 17. Nc5 {[%clk 0:01:17.7]} 17... O-O-O {[%clk 0:01:25.5]} 18.
Nd3 {[%clk 0:01:13.6]} 18... Ng4 {[%clk 0:01:17.3]} 19. c4 {[%clk 0:01:01.4]}
19... Nb6 {[%clk 0:01:09.5]} 20. f3 {[%clk 0:01:00.1]} 20... Nh6 {[%clk
0:01:03.2]} 21. Ne5 {[%clk 0:00:52.1]} 21... Rhe8 {[%clk 0:01:01.5]} 22. Ne4
{[%clk 0:00:32.8]} 22... f6 {[%clk 0:00:38.1]} 23. Ng6 {[%clk 0:00:24.8]} 23...
Qf7 {[%clk 0:00:37.5]} 24. Nf4 {[%clk 0:00:20]} 24... Nf5 {[%clk 0:00:28.5]} 25.
d5 {[%clk 0:00:16.3]} 25... exd5 {[%clk 0:00:23.7]} 26. cxd5 {[%clk 0:00:12.6]}
26... Nxd5 {[%clk 0:00:18.9]} 27. Kb1 {[%clk 0:00:07.4]} 27... Nxg3 {[%clk
0:00:11.6]} 28. Qc4 {[%clk 0:00:07.2]} 28... Nf5 {[%clk 0:00:05.1]} 29. Nxd5
{[%clk 0:00:06.6]} 29... Rxd5 {[%clk 0:00:05.2]} 30. Rc1 {[%clk 0:00:03.3]}
30... Qd7 {[%clk 0:00:04]} 31. Nc5 {[%clk 0:00:03.2]} 31... Qc7 {[%clk
0:00:03.5]} 32. Rhe1 {[%clk 0:00:01.1]} 32... Rxe1 {[%clk 0:00:02.8]} 0-1